[Event "Titled Tuesday Blitz September 28 2021"]
[White "Maksimenko, Viktor"]
[Black "Sviridova, Vlada"]
[WhiteFideId "13710478"]
[BlackFideId "24109606"]
[WhiteElo "2269"]
[BlackElo "2101"]
[Result "0-1"]
[Round "11"]
[TimeControl "180+1"]
[Date "2021.09.28"]
[WhiteClock "0:00:03"]
[BlackClock "0:00:07"]

1. d4 {[%clk 0:03:00]}  d5 {[%clk 0:03:00]} 2. c4 {[%clk 0:03:00]}  c6 {[%clk 0:02:59]} 3. Nc3 {[%clk 0:03:01]}  Nf6 {[%clk 0:02:59]} 4. e3 {[%clk 0:03:00]}  e6 {[%clk 0:02:59]} 5. Nf3 {[%clk 0:03:01]}  Nbd7 {[%clk 0:03:00]} 6. Be2 {[%clk 0:03:01]}  Bd6 {[%clk 0:03:00]} 7. O-O {[%clk 0:03:02]}  O-O {[%clk 0:03:00]} 8. b3 {[%clk 0:02:58]}  Re8 {[%clk 0:02:59]} 9. Bb2 {[%clk 0:02:59]}  b6 {[%clk 0:02:59]} 10. Qc2 {[%clk 0:02:59]}  Bb7 {[%clk 0:02:59]} 11. Rad1 {[%clk 0:02:59]}  Qe7 {[%clk 0:02:38]} 12. Rfe1 {[%clk 0:02:58]}  Bb4 {[%clk 0:02:29]} 13. Qc1 {[%clk 0:02:45]}  Ne4 {[%clk 0:02:26]} 14. Rf1 {[%clk 0:02:44]}  Ndf6 {[%clk 0:02:18]} 15. Nb1 {[%clk 0:02:40]}  Rac8 {[%clk 0:02:15]} 16. Ne5 {[%clk 0:02:30]}  c5 {[%clk 0:01:51]} 17. a3 {[%clk 0:02:28]}  Ba5 {[%clk 0:01:43]} 18. f3 {[%clk 0:02:22]}  Nd6 {[%clk 0:01:39]} 19. Rfe1 {[%clk 0:02:14]}  Bxe1 {[%clk 0:01:33]} 20. Rxe1 {[%clk 0:02:15]}  dxc4 {[%clk 0:01:33]} 21. bxc4 {[%clk 0:02:12]}  cxd4 {[%clk 0:01:31]} 22. exd4 {[%clk 0:02:12]}  Nf5 {[%clk 0:01:29]} 23. Bd3 {[%clk 0:02:10]}  Nh4 {[%clk 0:01:24]} 24. Bc3 {[%clk 0:01:52]}  a5 {[%clk 0:01:19]} 25. d5 {[%clk 0:01:42]}  exd5 {[%clk 0:01:03]} 26. Qf4 {[%clk 0:01:16]}  Ng6 {[%clk 0:00:19]} 27. Nxg6 {[%clk 0:01:14]}  Qc5+ {[%clk 0:00:19]} 28. Bd4 {[%clk 0:01:14]}  Rxe1+ {[%clk 0:00:19]} 29. Kf2 {[%clk 0:01:13]}  Qc7 {[%clk 0:00:16]} 30. Ne5 {[%clk 0:00:58]}  Rxe5 {[%clk 0:00:14]} 31. Bxe5 {[%clk 0:00:58]}  Qe7 {[%clk 0:00:14]} 32. Nc3 {[%clk 0:00:52]}  dxc4 {[%clk 0:00:14]} 33. Bc2 {[%clk 0:00:52]}  Re8 {[%clk 0:00:13]} 34. Bxf6 {[%clk 0:00:43]}  Qxf6 {[%clk 0:00:13]} 35. Qd2 {[%clk 0:00:36]}  Rd8 {[%clk 0:00:13]} 36. Qe1 {[%clk 0:00:32]}  Qd4+ {[%clk 0:00:13]} 37. Kg3 {[%clk 0:00:32]}  g6 {[%clk 0:00:13]} 38. Be4 {[%clk 0:00:30]}  Bxe4 {[%clk 0:00:12]} 39. Nxe4 {[%clk 0:00:31]}  Kg7 {[%clk 0:00:11]} 40. h4 {[%clk 0:00:26]}  h5 {[%clk 0:00:10]} 41. Ng5 {[%clk 0:00:21]}  Qd6+ {[%clk 0:00:09]} 42. Kh3 {[%clk 0:00:21]}  Qd7+ {[%clk 0:00:09]} 43. Kh2 {[%clk 0:00:21]}  Qd6+ {[%clk 0:00:09]} 44. Kh3 {[%clk 0:00:21]}  Qf4 {[%clk 0:00:09]} 45. Qe7 {[%clk 0:00:19]}  Qf6 {[%clk 0:00:08]} 46. Qc7 {[%clk 0:00:15]}  Rd4 {[%clk 0:00:08]} 47. Kg3 {[%clk 0:00:12]}  c3 {[%clk 0:00:08]} 48. Kf2 {[%clk 0:00:08]}  Rd2+ {[%clk 0:00:08]} 49. Kg3 {[%clk 0:00:08]}  c2 {[%clk 0:00:08]} 50. Ne4 {[%clk 0:00:07]}  c1=Q {[%clk 0:00:06]} 51. Qxc1 {[%clk 0:00:05]}  Qe5+ {[%clk 0:00:07]} 52. Kh3 {[%clk 0:00:05]}  Ra2 {[%clk 0:00:06]} 53. Qc7 {[%clk 0:00:05]}  Qxc7 {[%clk 0:00:06]} 54. Nc3 {[%clk 0:00:03]}  Qd7+ {[%clk 0:00:07]} 55. Kg3 {[%clk 0:00:03]}  Rc2 {[%clk 0:00:07]} 56. Ne4 {[%clk 0:00:03]}  f5 {[%clk 0:00:07]} 57. Ng5 {[%clk 0:00:04]}  Qd6+ {[%clk 0:00:08]} 58. Kh3 {[%clk 0:00:04]}  f4 {[%clk 0:00:08]} 59. Ne4 {[%clk 0:00:04]}  Qe6+ {[%clk 0:00:07]} 60. Kh2 {[%clk 0:00:03]}  Rc1 {[%clk 0:00:07]} 0-1


[Site "https://www.chess.com"]

[Event "Titled Tuesday Blitz September 28 2021"]
[White "Maltsevskaya, Aleksandra"]
[Black "Navalgund, Niranjan"]
[WhiteFideId "24174041"]
[BlackFideId "5030854"]
[WhiteElo "2239"]
[BlackElo "2290"]
[Result "1-0"]
[Round "11"]
[TimeControl "180+1"]
[Date "2021.09.28"]
[WhiteClock "0:00:30"]
[BlackClock "0:00:08"]

1. d4 {[%clk 0:03:00]}  Nf6 {[%clk 0:02:59]} 2. Nf3 {[%clk 0:03:00]}  e6 {[%clk 0:02:58]} 3. g3 {[%clk 0:02:51]}  g6 {[%clk 0:02:40]} 4. Bg2 {[%clk 0:02:49]}  Bg7 {[%clk 0:02:41]} 5. O-O {[%clk 0:02:47]}  O-O {[%clk 0:02:41]} 6. c4 {[%clk 0:02:45]}  d5 {[%clk 0:02:41]} 7. Qc2 {[%clk 0:02:42]}  Nc6 {[%clk 0:02:41]} 8. Rd1 {[%clk 0:02:36]}  Ne7 {[%clk 0:02:39]} 9. b3 {[%clk 0:02:34]}  b6 {[%clk 0:02:39]} 10. Nc3 {[%clk 0:02:34]}  Bb7 {[%clk 0:02:39]} 11. Bg5 {[%clk 0:02:31]}  h6 {[%clk 0:02:33]} 12. Bxf6 {[%clk 0:02:31]}  Bxf6 {[%clk 0:02:33]} 13. e4 {[%clk 0:02:31]}  Bg7 {[%clk 0:02:33]} 14. exd5 {[%clk 0:02:22]}  exd5 {[%clk 0:02:33]} 15. Rac1 {[%clk 0:02:22]}  c6 {[%clk 0:02:28]} 16. Ne5 {[%clk 0:02:18]}  a6 {[%clk 0:02:26]} 17. cxd5 {[%clk 0:02:16]}  cxd5 {[%clk 0:02:25]} 18. h4 {[%clk 0:02:00]}  h5 {[%clk 0:02:23]} 19. Ne2 {[%clk 0:01:50]}  Bh6 {[%clk 0:02:20]} 20. Nf4 {[%clk 0:01:47]}  Bxf4 {[%clk 0:02:15]} 21. gxf4 {[%clk 0:01:48]}  Rc8 {[%clk 0:02:15]} 22. Qd3 {[%clk 0:01:42]}  Nf5 {[%clk 0:02:16]} 23. Bh3 {[%clk 0:01:32]}  Rxc1 {[%clk 0:02:11]} 24. Rxc1 {[%clk 0:01:33]}  Nxh4 {[%clk 0:02:08]} 25. Qg3 {[%clk 0:01:27]}  Re8 {[%clk 0:02:07]} 26. a4 {[%clk 0:01:14]}  Kg7 {[%clk 0:02:04]} 27. b4 {[%clk 0:01:04]}  a5 {[%clk 0:01:51]} 28. b5 {[%clk 0:01:03]}  Rh8 {[%clk 0:00:55]} 29. f5 {[%clk 0:00:46]}  g5 {[%clk 0:00:43]} 30. Nxf7 {[%clk 0:00:42]}  Kxf7 {[%clk 0:00:16]} 31. Rc7+ {[%clk 0:00:42]}  Kf8 {[%clk 0:00:17]} 32. Rxb7 {[%clk 0:00:42]}  g4 {[%clk 0:00:12]} 33. Rb8 {[%clk 0:00:35]}  Nf3+ {[%clk 0:00:11]} 34. Kh1 {[%clk 0:00:33]}  Kg7 {[%clk 0:00:10]} 35. Rxd8 {[%clk 0:00:31]}  Rxd8 {[%clk 0:00:11]} 36. Bg2 {[%clk 0:00:31]}  Kf6 {[%clk 0:00:10]} 37. Bxf3 {[%clk 0:00:30]}  Rc8 {[%clk 0:00:11]} 38. Qe5+ {[%clk 0:00:30]}  Kg5 {[%clk 0:00:10]} 39. Bxd5 {[%clk 0:00:31]}  Kh4 {[%clk 0:00:09]} 40. Qf6+ {[%clk 0:00:30]}  Kh3 {[%clk 0:00:08]} 41. Bg2# {[%clk 0:00:30]} 1-0


[Site "https://www.chess.com"]

[Event "Titled Tuesday Blitz September 28 2021"]
[White "Mekhitarian, Krikor Sevag"]
[Black "Kucuksari, Kaan"]
[WhiteFideId "2107660"]
[BlackFideId "6380166"]
[WhiteElo "2598"]
[BlackElo "2301"]
[Result "1-0"]
[Round "11"]
[TimeControl "180+1"]
[Date "2021.09.28"]
[WhiteClock "0:00:45"]
[BlackClock "0:00:03"]

1. e4 {[%clk 0:03:00]}  c6 {[%clk 0:02:58]} 2. Nf3 {[%clk 0:02:50]}  d5 {[%clk 0:02:59]} 3. d3 {[%clk 0:02:50]}  dxe4 {[%clk 0:02:59]} 4. dxe4 {[%clk 0:02:51]}  Qxd1+ {[%clk 0:02:59]} 5. Kxd1 {[%clk 0:02:52]}  Nf6 {[%clk 0:02:53]} 6. Nfd2 {[%clk 0:02:51]}  g5 {[%clk 0:02:45]} 7. h3 {[%clk 0:02:42]}  g4 {[%clk 0:02:29]} 8. hxg4 {[%clk 0:02:42]}  Nxg4 {[%clk 0:02:30]} 9. Ke1 {[%clk 0:02:41]}  h5 {[%clk 0:02:25]} 10. Nb3 {[%clk 0:02:27]}  Na6 {[%clk 0:02:16]} 11. f3 {[%clk 0:02:26]}  Ne5 {[%clk 0:02:15]} 12. a3 {[%clk 0:02:23]}  Ng6 {[%clk 0:02:14]} 13. Nc3 {[%clk 0:02:12]}  e5 {[%clk 0:02:09]} 14. Be3 {[%clk 0:02:10]}  Be6 {[%clk 0:02:02]} 15. Bxa6 {[%clk 0:02:08]}  bxa6 {[%clk 0:02:00]} 16. Nc5 {[%clk 0:02:09]}  Bxc5 {[%clk 0:01:55]} 17. Bxc5 {[%clk 0:02:08]}  h4 {[%clk 0:01:49]} 18. Kf2 {[%clk 0:02:04]}  f6 {[%clk 0:01:46]} 19. Be3 {[%clk 0:02:02]}  Kf7 {[%clk 0:01:45]} 20. Na4 {[%clk 0:01:55]}  Rag8 {[%clk 0:01:41]} 21. Nc5 {[%clk 0:01:54]}  Bc8 {[%clk 0:01:41]} 22. Rad1 {[%clk 0:01:54]}  Ke7 {[%clk 0:01:24]} 23. Rd2 {[%clk 0:01:44]}  h3 {[%clk 0:01:21]} 24. g4 {[%clk 0:01:38]}  Rh7 {[%clk 0:00:52]} 25. Kg3 {[%clk 0:01:25]}  Rgh8 {[%clk 0:00:28]} 26. Rdh2 {[%clk 0:01:20]}  Nf8 {[%clk 0:00:19]} 27. Rxh3 {[%clk 0:01:17]}  Rxh3+ {[%clk 0:00:20]} 28. Rxh3 {[%clk 0:01:17]}  Rxh3+ {[%clk 0:00:21]} 29. Kxh3 {[%clk 0:01:18]}  Ne6 {[%clk 0:00:22]} 30. Nd3 {[%clk 0:01:11]}  Kf7 {[%clk 0:00:11]} 31. Bxa7 {[%clk 0:01:08]}  Ng5+ {[%clk 0:00:11]} 32. Kg3 {[%clk 0:01:07]}  Ne6 {[%clk 0:00:12]} 33. Be3 {[%clk 0:01:01]}  Bd7 {[%clk 0:00:11]} 34. b3 {[%clk 0:00:53]}  Bc8 {[%clk 0:00:11]} 35. a4 {[%clk 0:00:53]}  Nd8 {[%clk 0:00:08]} 36. g5 {[%clk 0:00:48]}  fxg5 {[%clk 0:00:04]} 37. Bxg5 {[%clk 0:00:45]}  Ne6 {[%clk 0:00:02]} 38. Nxe5+ {[%clk 0:00:46]}  Kg7 {[%clk 0:00:02]} 39. Be3 {[%clk 0:00:47]}  Bb7 {[%clk 0:00:02]} 40. f4 {[%clk 0:00:45]}  c5 {[%clk 0:00:02]} 41. f5 {[%clk 0:00:45]}  Nd4 {[%clk 0:00:02]} 42. Bxd4 {[%clk 0:00:45]}  cxd4 {[%clk 0:00:03]} 43. Kf4 {[%clk 0:00:45]} 1-0


[Site "https://www.chess.com"]

[Event "Titled Tuesday Blitz September 28 2021"]
[White "Milchev, Nikolay"]
[Black "Martinez Lopez, David"]
[WhiteFideId "2906090"]
[BlackFideId "22235779"]
[WhiteElo "2449"]
[BlackElo "2391"]
[Result "1-0"]
[Round "11"]
[TimeControl "180+1"]
[Date "2021.09.28"]
[WhiteClock "0:01:23"]
[BlackClock "0:00:03"]

1. Nf3 {[%clk 0:03:00]}  Nf6 {[%clk 0:02:59]} 2. c4 {[%clk 0:03:01]}  g6 {[%clk 0:02:59]} 3. Nc3 {[%clk 0:03:02]}  Bg7 {[%clk 0:02:59]} 4. e4 {[%clk 0:03:02]}  d6 {[%clk 0:02:59]} 5. d4 {[%clk 0:03:03]}  O-O {[%clk 0:02:59]} 6. h3 {[%clk 0:03:03]}  e5 {[%clk 0:02:59]} 7. dxe5 {[%clk 0:03:04]}  dxe5 {[%clk 0:02:58]} 8. Be3 {[%clk 0:03:05]}  c6 {[%clk 0:02:26]} 9. Be2 {[%clk 0:03:04]}  Qe7 {[%clk 0:02:22]} 10. O-O {[%clk 0:03:04]}  Na6 {[%clk 0:02:21]} 11. a3 {[%clk 0:03:03]}  Nc5 {[%clk 0:02:19]} 12. Qc2 {[%clk 0:03:03]}  Nh5 {[%clk 0:02:13]} 13. b4 {[%clk 0:03:00]}  Ne6 {[%clk 0:02:13]} 14. Rad1 {[%clk 0:03:00]}  Nef4 {[%clk 0:02:07]} 15. Rfe1 {[%clk 0:03:00]}  Nxe2+ {[%clk 0:02:04]} 16. Nxe2 {[%clk 0:02:57]}  b6 {[%clk 0:01:52]} 17. c5 {[%clk 0:02:54]}  b5 {[%clk 0:01:49]} 18. Rd6 {[%clk 0:02:54]}  Qc7 {[%clk 0:01:09]} 19. Red1 {[%clk 0:02:50]}  Be6 {[%clk 0:01:02]} 20. Ng5 {[%clk 0:02:44]}  Bc4 {[%clk 0:00:44]} 21. Rd7 {[%clk 0:02:43]}  Qc8 {[%clk 0:00:44]} 22. R1d6 {[%clk 0:02:38]}  h6 {[%clk 0:00:43]} 23. Nf3 {[%clk 0:02:38]}  Be6 {[%clk 0:00:41]} 24. Re7 {[%clk 0:02:35]}  g5 {[%clk 0:00:25]} 25. Ng3 {[%clk 0:02:24]}  Nxg3 {[%clk 0:00:19]} 26. fxg3 {[%clk 0:02:24]}  Bf6 {[%clk 0:00:20]} 27. Rexe6 {[%clk 0:02:21]}  fxe6 {[%clk 0:00:20]} 28. Qb3 {[%clk 0:02:20]}  Re8 {[%clk 0:00:20]} 29. Bd2 {[%clk 0:02:20]}  Bg7 {[%clk 0:00:20]} 30. Bc3 {[%clk 0:02:19]}  Re7 {[%clk 0:00:14]} 31. Bxe5 {[%clk 0:02:19]}  Qe8 {[%clk 0:00:12]} 32. Bxg7 {[%clk 0:02:17]}  Kxg7 {[%clk 0:00:13]} 33. Ne5 {[%clk 0:02:17]}  Rc8 {[%clk 0:00:11]} 34. g4 {[%clk 0:02:08]}  Kh7 {[%clk 0:00:10]} 35. Qf3 {[%clk 0:02:04]}  Qh8 {[%clk 0:00:06]} 36. Nxc6 {[%clk 0:01:58]}  Rf8 {[%clk 0:00:02]} 37. Qd1 {[%clk 0:01:46]}  Ref7 {[%clk 0:00:02]} 38. e5 {[%clk 0:01:44]}  Rf1+ {[%clk 0:00:02]} 39. Qxf1 {[%clk 0:01:43]}  Rxf1+ {[%clk 0:00:03]} 40. Kxf1 {[%clk 0:01:44]}  Qf8+ {[%clk 0:00:04]} 41. Kg1 {[%clk 0:01:44]}  Qf4 {[%clk 0:00:05]} 42. Rd7+ {[%clk 0:01:34]}  Kg6 {[%clk 0:00:04]} 43. Ne7+ {[%clk 0:01:30]}  Kf7 {[%clk 0:00:03]} 44. Nd5+ {[%clk 0:01:30]}  Ke8 {[%clk 0:00:03]} 45. Nxf4 {[%clk 0:01:26]}  Kxd7 {[%clk 0:00:03]} 46. Nd3 {[%clk 0:01:23]} 1-0


[Site "https://www.chess.com"]

[Event "Titled Tuesday Blitz September 28 2021"]
[White "Mirzanurov, Bulat"]
[Black "Pandey Srishti"]
[WhiteFideId "4184521"]
[BlackFideId "35093290"]
[WhiteElo "2180"]
[BlackElo "1816"]
[Result "1/2-1/2"]
[Round "11"]
[TimeControl "180+1"]
[Date "2021.09.28"]
[WhiteClock "0:00:16"]
[BlackClock "0:01:11"]

1. e4 {[%clk 0:03:00]}  e5 {[%clk 0:02:59]} 2. Nf3 {[%clk 0:03:01]}  Nc6 {[%clk 0:02:59]} 3. Bc4 {[%clk 0:03:01]}  Bc5 {[%clk 0:02:58]} 4. c3 {[%clk 0:03:01]}  Nf6 {[%clk 0:02:58]} 5. d3 {[%clk 0:03:02]}  d6 {[%clk 0:02:58]} 6. Nbd2 {[%clk 0:03:00]}  O-O {[%clk 0:02:57]} 7. O-O {[%clk 0:03:00]}  h6 {[%clk 0:02:52]} 8. h3 {[%clk 0:02:52]}  a5 {[%clk 0:02:51]} 9. Bb3 {[%clk 0:02:46]}  Be6 {[%clk 0:02:45]} 10. Bc2 {[%clk 0:02:44]}  Re8 {[%clk 0:02:38]} 11. Re1 {[%clk 0:02:44]}  d5 {[%clk 0:02:37]} 12. exd5 {[%clk 0:02:38]}  Bxd5 {[%clk 0:02:38]} 13. Ba4 {[%clk 0:02:22]}  e4 {[%clk 0:02:34]} 14. dxe4 {[%clk 0:02:15]}  Nxe4 {[%clk 0:02:32]} 15. Nxe4 {[%clk 0:02:13]}  Bxe4 {[%clk 0:02:33]} 16. Qxd8 {[%clk 0:02:10]}  Raxd8 {[%clk 0:02:34]} 17. Bf4 {[%clk 0:01:51]}  Bb6 {[%clk 0:02:33]} 18. Rad1 {[%clk 0:01:48]}  Rxd1 {[%clk 0:02:29]} 19. Rxd1 {[%clk 0:01:48]}  g5 {[%clk 0:02:26]} 20. Bg3 {[%clk 0:01:39]}  Bxf3 {[%clk 0:02:26]} 21. gxf3 {[%clk 0:01:40]}  Re2 {[%clk 0:02:26]} 22. b3 {[%clk 0:01:24]}  Rxa2 {[%clk 0:02:22]} 23. Bb5 {[%clk 0:01:10]}  Rc2 {[%clk 0:02:21]} 24. Bc4 {[%clk 0:00:59]}  Rxc3 {[%clk 0:02:16]} 25. Rd7 {[%clk 0:00:58]}  Rxf3 {[%clk 0:02:15]} 26. Kg2 {[%clk 0:00:50]}  Rf6 {[%clk 0:02:13]} 27. Bxc7 {[%clk 0:00:50]}  Rxf2+ {[%clk 0:02:12]} 28. Kg3 {[%clk 0:00:49]}  Be3 {[%clk 0:01:59]} 29. Rd3 {[%clk 0:00:25]}  Ba7 {[%clk 0:01:55]} 30. Bd6 {[%clk 0:00:10]}  h5 {[%clk 0:01:52]} 31. h4 {[%clk 0:00:03]}  g4 {[%clk 0:01:41]} 32. Rd5 {[%clk 0:00:03]}  Rf3+ {[%clk 0:01:36]} 33. Kg2 {[%clk 0:00:04]}  Nb4 {[%clk 0:01:33]} 34. Rg5+ {[%clk 0:00:03]}  Kh7 {[%clk 0:01:31]} 35. Rxh5+ {[%clk 0:00:04]}  Kg6 {[%clk 0:01:31]} 36. Rg5+ {[%clk 0:00:04]}  Kf6 {[%clk 0:01:27]} 37. Bxb4 {[%clk 0:00:04]}  axb4 {[%clk 0:01:25]} 38. Rxg4 {[%clk 0:00:05]}  Rf2+ {[%clk 0:01:25]} 39. Kg3 {[%clk 0:00:05]}  Rc2 {[%clk 0:01:21]} 40. Rf4+ {[%clk 0:00:05]}  Ke5 {[%clk 0:01:18]} 41. Rxf7 {[%clk 0:00:06]}  Bf2+ {[%clk 0:01:15]} 42. Kf3 {[%clk 0:00:05]}  Bxh4 {[%clk 0:01:14]} 43. Rxb7 {[%clk 0:00:05]}  Kd4 {[%clk 0:01:06]} 44. Rxb4 {[%clk 0:00:03]}  Be1 {[%clk 0:01:06]} 45. Rb5 {[%clk 0:00:03]}  Rb2 {[%clk 0:01:04]} 46. Rd5+ {[%clk 0:00:03]}  Kc3 {[%clk 0:01:05]} 47. Re5 {[%clk 0:00:04]}  Bd2 {[%clk 0:01:04]} 48. Re2 {[%clk 0:00:04]}  Kb4 {[%clk 0:01:03]} 49. Ke4 {[%clk 0:00:03]}  Bc3 {[%clk 0:01:03]} 50. Rxb2 {[%clk 0:00:03]}  Bxb2 {[%clk 0:01:04]} 51. Kd3 {[%clk 0:00:04]}  Bg7 {[%clk 0:01:03]} 52. Bd5 {[%clk 0:00:05]}  Ba1 {[%clk 0:01:03]} 53. Bc4 {[%clk 0:00:05]}  Bh8 {[%clk 0:01:03]} 54. Ke4 {[%clk 0:00:06]}  Bg7 {[%clk 0:01:03]} 55. Kd3 {[%clk 0:00:07]}  Bf8 {[%clk 0:01:04]} 56. Ke4 {[%clk 0:00:08]}  Bc5 {[%clk 0:01:05]} 57. Kd3 {[%clk 0:00:09]}  Bb6 {[%clk 0:01:06]} 58. Ke4 {[%clk 0:00:10]}  Bc7 {[%clk 0:01:06]} 59. Kd3 {[%clk 0:00:11]}  Bb8 {[%clk 0:01:07]} 60. Ke4 {[%clk 0:00:12]}  Ba7 {[%clk 0:01:08]} 61. Kd3 {[%clk 0:00:13]}  Bc5 {[%clk 0:01:09]} 62. Ke4 {[%clk 0:00:13]}  Be7 {[%clk 0:01:09]} 63. Kd3 {[%clk 0:00:14]}  Bf6 {[%clk 0:01:10]} 64. Ke4 {[%clk 0:00:15]}  Bc3 {[%clk 0:01:11]} 65. Kd3 {[%clk 0:00:16]} 1/2-1/2


[Site "https://www.chess.com"]

[Event "Titled Tuesday Blitz September 28 2021"]
[White "Nakamura, Hikaru"]
[Black "Savchenko, Boris"]
[WhiteFideId "2016192"]
[BlackFideId "4147332"]
[WhiteElo "3205"]
[BlackElo "2857"]
[Result "0-1"]
[Round "11"]
[TimeControl "180+1"]
[Date "2021.09.28"]
[WhiteClock "0:00:07"]
[BlackClock "0:00:16"]

1. Nf3 {[%clk 0:03:00]}  d5 {[%clk 0:02:59]} 2. g3 {[%clk 0:02:59]}  Nf6 {[%clk 0:03:00]} 3. Bg2 {[%clk 0:02:59]}  Bf5 {[%clk 0:02:58]} 4. d3 {[%clk 0:02:58]}  e6 {[%clk 0:02:58]} 5. Nh4 {[%clk 0:02:58]}  Bg4 {[%clk 0:02:58]} 6. h3 {[%clk 0:02:59]}  Bh5 {[%clk 0:02:58]} 7. g4 {[%clk 0:02:58]}  Nfd7 {[%clk 0:02:58]} 8. Nf3 {[%clk 0:02:58]}  Bg6 {[%clk 0:02:58]} 9. Nbd2 {[%clk 0:02:59]}  c5 {[%clk 0:02:56]} 10. c4 {[%clk 0:02:55]}  Nc6 {[%clk 0:02:55]} 11. b3 {[%clk 0:02:55]}  d4 {[%clk 0:02:53]} 12. a3 {[%clk 0:02:55]}  a5 {[%clk 0:02:52]} 13. Ne4 {[%clk 0:02:50]}  Be7 {[%clk 0:02:51]} 14. Ng3 {[%clk 0:02:44]}  O-O {[%clk 0:02:42]} 15. h4 {[%clk 0:02:43]}  f5 {[%clk 0:02:42]} 16. h5 {[%clk 0:02:37]}  Be8 {[%clk 0:02:42]} 17. gxf5 {[%clk 0:02:38]}  exf5 {[%clk 0:02:43]} 18. Bf4 {[%clk 0:02:38]}  Nf6 {[%clk 0:02:40]} 19. Qd2 {[%clk 0:02:33]}  Ng4 {[%clk 0:02:35]} 20. Nh2 {[%clk 0:02:27]}  Nce5 {[%clk 0:02:23]} 21. Bxb7 {[%clk 0:02:19]}  Rb8 {[%clk 0:02:19]} 22. Bd5+ {[%clk 0:02:17]}  Bf7 {[%clk 0:02:17]} 23. Bxf7+ {[%clk 0:02:17]}  Rxf7 {[%clk 0:02:13]} 24. f3 {[%clk 0:01:53]}  Bd6 {[%clk 0:01:16]} 25. fxg4 {[%clk 0:01:35]}  fxg4 {[%clk 0:01:16]} 26. Bg5 {[%clk 0:01:33]}  Nxd3+ {[%clk 0:01:14]} 27. Qxd3 {[%clk 0:01:16]}  Qxg5 {[%clk 0:01:14]} 28. Nhf1 {[%clk 0:01:15]}  Re8 {[%clk 0:00:58]} 29. Ne4 {[%clk 0:01:12]}  Qf5 {[%clk 0:00:58]} 30. Nfd2 {[%clk 0:01:11]}  Bf4 {[%clk 0:00:57]} 31. Kd1 {[%clk 0:01:06]}  g3 {[%clk 0:00:47]} 32. Kc2 {[%clk 0:00:55]}  g2 {[%clk 0:00:45]} 33. Rhg1 {[%clk 0:00:55]}  Bxd2 {[%clk 0:00:45]} 34. Nxd2 {[%clk 0:00:56]}  Rxe2 {[%clk 0:00:45]} 35. Qxf5 {[%clk 0:00:37]}  Rxf5 {[%clk 0:00:46]} 36. Rae1 {[%clk 0:00:37]}  Ref2 {[%clk 0:00:34]} 37. Re4 {[%clk 0:00:25]}  R5f3 {[%clk 0:00:25]} 38. Kd1 {[%clk 0:00:19]}  Re3 {[%clk 0:00:16]} 39. Rxe3 {[%clk 0:00:08]}  dxe3 {[%clk 0:00:17]} 40. Nf3 {[%clk 0:00:09]}  Rxf3 {[%clk 0:00:15]} 41. Ke2 {[%clk 0:00:09]}  Rg3 {[%clk 0:00:15]} 42. b4 {[%clk 0:00:10]}  cxb4 {[%clk 0:00:15]} 43. axb4 {[%clk 0:00:08]}  axb4 {[%clk 0:00:16]} 44. c5 {[%clk 0:00:09]}  Kf7 {[%clk 0:00:16]} 45. c6 {[%clk 0:00:07]}  Ke7 {[%clk 0:00:16]} 0-1


[Site "https://www.chess.com"]

[Event "Titled Tuesday Blitz September 28 2021"]
[White "Novikova, Galina"]
[Black "Vusatiuk, Vladimir"]
[WhiteFideId "4157095"]
[BlackFideId "14118610"]
[WhiteElo "1844"]
[BlackElo "2167"]
[Result "1-0"]
[Round "11"]
[TimeControl "180+1"]
[Date "2021.09.28"]
[WhiteClock "0:00:18"]
[BlackClock "0:00:07"]

1. e4 {[%clk 0:03:00]}  e6 {[%clk 0:03:00]} 2. Nf3 {[%clk 0:03:00]}  d5 {[%clk 0:03:00]} 3. e5 {[%clk 0:03:01]}  c5 {[%clk 0:03:00]} 4. b4 {[%clk 0:03:02]}  cxb4 {[%clk 0:03:00]} 5. a3 {[%clk 0:03:03]}  Nc6 {[%clk 0:02:59]} 6. axb4 {[%clk 0:03:02]}  Bxb4 {[%clk 0:03:00]} 7. c3 {[%clk 0:03:03]}  Be7 {[%clk 0:03:01]} 8. d4 {[%clk 0:03:03]}  a6 {[%clk 0:02:51]} 9. Bd3 {[%clk 0:03:04]}  Bd7 {[%clk 0:02:50]} 10. O-O {[%clk 0:03:04]}  b5 {[%clk 0:02:49]} 11. Nfd2 {[%clk 0:02:56]}  Na5 {[%clk 0:02:49]} 12. Qg4 {[%clk 0:02:55]}  g6 {[%clk 0:02:49]} 13. Ba3 {[%clk 0:02:39]}  h5 {[%clk 0:02:48]} 14. Qg3 {[%clk 0:02:33]}  Nc4 {[%clk 0:02:47]} 15. Bxg6 {[%clk 0:02:21]}  h4 {[%clk 0:02:34]} 16. Bxf7+ {[%clk 0:02:04]}  Kxf7 {[%clk 0:02:35]} 17. Qf3+ {[%clk 0:01:51]}  Kg7 {[%clk 0:02:10]} 18. Nxc4 {[%clk 0:01:44]}  bxc4 {[%clk 0:01:59]} 19. Qg4+ {[%clk 0:01:42]}  Kh6 {[%clk 0:01:53]} 20. Bc1+ {[%clk 0:01:39]}  Kh7 {[%clk 0:01:44]} 21. f4 {[%clk 0:01:35]}  Nh6 {[%clk 0:01:41]} 22. Qf3 {[%clk 0:01:16]}  Be8 {[%clk 0:01:17]} 23. f5 {[%clk 0:01:12]}  Nxf5 {[%clk 0:01:16]} 24. Nd2 {[%clk 0:00:59]}  Bg5 {[%clk 0:01:09]} 25. Qg4 {[%clk 0:00:41]}  Be3+ {[%clk 0:00:36]} 26. Kh1 {[%clk 0:00:39]}  Qg5 {[%clk 0:00:37]} 27. Qe2 {[%clk 0:00:32]}  Kg7 {[%clk 0:00:30]} 28. Rxf5 {[%clk 0:00:26]}  exf5 {[%clk 0:00:24]} 29. Nf3 {[%clk 0:00:26]}  Qg4 {[%clk 0:00:16]} 30. Bxe3 {[%clk 0:00:24]}  h3 {[%clk 0:00:17]} 31. g3 {[%clk 0:00:25]}  Bh5 {[%clk 0:00:17]} 32. Rf1 {[%clk 0:00:24]}  Qxf3+ {[%clk 0:00:17]} 33. Rxf3 {[%clk 0:00:24]}  Bxf3+ {[%clk 0:00:18]} 34. Qxf3 {[%clk 0:00:25]}  Kg6 {[%clk 0:00:11]} 35. Qxd5 {[%clk 0:00:24]}  a5 {[%clk 0:00:08]} 36. Qe6+ {[%clk 0:00:24]}  Kg7 {[%clk 0:00:09]} 37. Qf6+ {[%clk 0:00:22]}  Kh7 {[%clk 0:00:08]} 38. Qxf5+ {[%clk 0:00:21]}  Kg7 {[%clk 0:00:08]} 39. Qf6+ {[%clk 0:00:20]}  Kh7 {[%clk 0:00:07]} 40. Qf7# {[%clk 0:00:18]} 1-0


[Site "https://www.chess.com"]